bitfinex/quotes_SOLUSD_20250822
["timestamp","ask_amount","ask_price","bid_price","bid_amount"]
[1755821810433,5.68942325,181.32,181.31,2.210617]
[1755821810832,48.48942325,181.32,181.31,2.210617]
[1755821812630,48.48942325,181.32,181.31,28.210617]
[1755821812813,0.06,181.32,181.31,33.82004025]
[1755821813216,0.06,181.32,181.31,2.210617]
[1755821813829,0.75,181.32,181.31,2.210617]
[1755821814009,5.68942325,181.32,181.31,28.210617]
[1755821814209,0.75,181.32,181.31,28.210617]
[1755821815105,5.68942325,181.32,181.31,2.210617]
[1755821816331,9.40458918,181.32,181.3,0.03]
[1755821816513,5.62942325,181.31,181.3,0.03]
[1755821817538,13.47267158,181.31,181.28,0.03]
[1755821817709,9.8788465,181.29,181.26,0.03]
[1755821817914,9.8788465,181.27,181.26,0.03]
[1755821818126,56.41401243,181.27,181.26,0.03]
[1755821818361,70.69960644,181.27,181.26,0.03]
[1755821818508,4.40516593,181.27,181.26,0.03]
[1755821818713,48.44942325,181.27,181.26,0.03]
[1755821818937,52.16458918,181.27,181.26,0.03]
[1755821820214,48.44942325,181.27,181.26,0.03]
[1755821821022,52.16075007,181.27,181.26,0.03]
[1755821821431,48.44942325,181.27,181.26,0.03]
[1755821823221,4.93942325,181.27,181.26,0.03]
[1755821823527,47.75942325,181.27,181.26,0.03]
[1755821823728,48.44942325,181.27,181.26,0.03]
[1755821824531,47.75942325,181.27,181.26,0.03]
[1755821824928,4.93942325,181.27,181.26,0.03]
[1755821825125,48.44942325,181.27,181.26,26.03]
[1755821825529,42.8,181.27,181.26,26.7]
[1755821825731,47.73942325,181.27,181.26,26.7]
[1755821825940,47.73942325,181.27,181.26,26.03]
[1755821826541,47.73942325,181.27,181.26,0.03]
[1755821826945,132.4,181.29,181.26,0.03]
[1755821827132,0.06,181.32,181.28,26.0]
[1755821827328,47.75942325,181.31,181.3,26.0]
[1755821827530,42.82,181.31,181.3,26.0]
[1755821827832,42.82,181.31,181.3,26.67]
[1755821828033,42.82,181.31,181.3,0.67]
[1755821828353,42.82,181.31,181.3,26.67]
[1755821828525,42.82,181.31,181.3,0.67]
[1755821828851,42.82,181.31,181.3,17.25604]
[1755821829642,42.82,181.31,181.3,22.19546325]
[1755821830029,42.82,181.31,181.3,17.25604]
[1755821830622,42.88,181.31,181.3,22.7717598]
[1755821830816,42.88,181.31,181.3,17.25604]
[1755821831235,0.06,181.31,181.3,27.71118305]
[1755821832122,0.06,181.31,181.3,53.71118305]
[1755821832327,0.06,181.31,181.3,41.5911002]
[1755821835422,0.06,181.32,181.3,41.5911002]
[1755821835623,0.06,181.32,181.31,5.60942325]
[1755821836952,0.06,181.32,181.31,11.12483883]
[1755821840771,0.06,181.34,181.33,39.59559401]
[1755821840929,0.06,181.36,181.35,23.75876365]
[1755821841325,0.06,181.36,181.35,29.92296271]
[1755821841563,0.06,181.36,181.35,24.98353946]
[1755821842756,0.06,181.36,181.35,27.19391146]
[1755821843169,0.06,181.36,181.35,32.13333471]
[1755821843828,0.06,181.36,181.35,74.91333471]
[1755821844858,0.06,181.38,181.36,13.87991715]
[1755821845050,1e-08,181.37,181.36,19.4693404]
[1755821847159,1e-08,181.37,181.36,24.98323541]
[1755821848534,0.06,181.38,181.36,24.98323541]
[1755821848735,0.06,181.38,181.37,19.4693404]
[1755821849164,0.06,181.38,181.37,21.6791014]
[1755821849338,0.06,181.38,181.37,27.1926924]
[1755821849548,0.06,181.38,181.37,26.5426924]
[1755821849751,0.06,181.38,181.37,27.1926924]
[1755821851867,0.06,181.38,181.37,69.9526924]
[1755821853542,1e-08,181.38,181.37,69.9526924]
[1755821854653,0.06,181.46,181.4,39.59559401]
[1755821854849,0.06,181.46,181.45,18.8193404]
[1755821855059,0.06,181.46,181.45,61.5793404]
[1755821855263,1e-08,181.46,181.45,62.2293404]
[1755821855466,0.06,181.48,181.45,62.2293404]
[1755821855467,0.06,181.48,181.47,45.39046985]
[1755821855772,0.06,181.48,181.47,67.0898931]
[1755821856155,0.06,181.48,181.47,62.80046985]
[1755821856357,0.06,181.48,181.47,67.7398931]
[1755821862765,0.06,181.48,181.47,67.0898931]
[1755821863087,0.06,181.48,181.47,67.7398931]
[1755821863586,0.06,181.48,181.47,69.9285561]
[1755821863786,0.06,181.48,181.47,69.2785561]
[1755821864150,0.06,181.48,181.47,26.5385561]
[1755821864352,0.06,181.48,181.47,69.9285561]
[1755821864762,0.06,181.48,181.47,75.38833649]
[1755821866151,0.06,181.48,181.47,74.73833649]
[1755821866765,0.06,181.48,181.47,31.99833649]
[1755821866986,0.06,181.48,181.47,74.73833649]
[1755821867776,0.72,181.48,181.47,31.71401335]
[1755821868084,0.06,181.48,181.47,31.85617492]
[1755821868477,0.06,181.48,181.47,31.99833649]
[1755821869381,0.06,181.48,181.47,32.67833649]
[1755821870175,0.06,181.48,181.47,31.99833649]
[1755821873084,0.72,181.48,181.47,31.99833649]
[1755821873979,0.06,181.48,181.47,31.99833649]
[1755821874568,0.72,181.48,181.47,31.99833649]
[1755821874972,0.06,181.48,181.47,75.41833649]
[1755821876161,0.06,181.5,181.48,13.87991715]
[1755821876358,0.06,181.5,181.49,47.67942325]
[1755821876585,0.06,181.5,181.49,53.8693687]
[1755821878891,0.06,181.5,181.49,56.0779107]
[1755821880275,0.06,181.5,181.49,55.3979107]
[1755821880477,0.06,181.5,181.49,56.0779107]
[1755821881068,0.06,181.5,181.49,69.95782785]
[1755821882182,1e-08,181.51,181.5,13.87991715]
[1755821882382,1e-08,181.52,181.5,23.8384265]
[1755821882582,1e-08,181.52,181.51,62.2193404]
[1755821883494,1e-08,181.52,181.51,13.87991715]
[1755821883692,1e-08,181.52,181.51,56.31559401]
[1755821883693,0.66000001,181.52,181.51,56.31559401]
[1755821884082,1e-08,181.52,181.51,62.10925547]
[1755821884616,0.66000001,181.52,181.51,19.38925547]
[1755821884787,0.66000001,181.52,181.51,48.51366146]
[1755821885388,0.66000001,181.52,181.5,5.50956875]
[1755821885591,0.66000001,181.52,181.5,26.0]
[1755821885592,4.93942325,181.51,181.5,26.0]
[1755821885903,5.59942325,181.51,181.5,26.0]
[1755821886502,5.59942325,181.51,181.49,2.208542]
[1755821886705,4.93942325,181.51,181.5,26.0]
[1755821886883,4.93942325,181.51,181.49,7.71832208]
[1755821887405,1e-08,181.52,181.51,26.14216157]
[1755821887578,1e-08,181.52,181.51,26.0]
[1755821888086,5.59942326,181.52,181.51,26.0]
[1755821889682,1e-08,181.52,181.51,31.50933832]
[1755821890092,1e-08,181.52,181.51,31.79366146]
[1755821890295,1e-08,181.52,181.51,51.00867872]
[1755821890483,1e-08,181.52,181.51,93.72867872]
[1755821898393,1e-08,181.52,181.51,95.93673272]
[1755821901123,0.06,181.54,181.51,95.93673272]
[1755821901124,1e-08,181.54,181.52,30.48991715]
[1755821901328,1e-08,181.54,181.53,66.47876365]
[1755821901704,1e-08,181.54,181.53,67.16876365]
[1755821901907,1e-08,181.54,181.53,69.37620765]
[1755821902149,1e-08,181.54,181.53,59.49736115]
[1755821902335,1e-08,181.54,181.53,69.37620765]
[1755821902927,1e-08,181.54,181.53,26.53551573]
[1755821903114,1e-08,181.54,181.53,69.80335416]
[1755821903508,1e-08,181.54,181.53,69.94551573]
[1755821903908,1e-08,181.54,181.53,26.53551573]
[1755821904107,0.71000001,181.54,181.53,68.97119259]
[1755821904315,0.71000001,181.54,181.53,69.25551573]
[1755821904501,1e-08,181.54,181.53,69.11335416]
[1755821904705,1e-08,181.54,181.53,69.80335416]
[1755821905017,1e-08,181.54,181.53,69.94551573]
[1755821905421,1e-08,181.56,181.55,26.0]
[1755821905617,1e-08,181.56,181.55,61.5393404]
[1755821905818,1e-08,181.56,181.55,62.2293404]
[1755821907041,1e-08,181.56,181.55,50.32746488]
[1755821907214,1e-08,181.56,181.55,62.10804163]
[1755821907409,0.71000001,181.56,181.55,67.04746488]
[1755821907918,0.71000001,181.56,181.55,19.38804163]
[1755821908117,0.71000001,181.56,181.55,62.10804163]
[1755821908325,0.71000001,181.56,181.55,67.04746488]
[1755821908529,1e-08,181.56,181.55,67.04746488]
[1755821911634,1e-08,181.56,181.55,71.98688888]
[1755821912010,0.71000001,181.56,181.55,47.94374714]
[1755821912415,0.71000001,181.56,181.55,5.22374714]
[1755821912641,5.64942326,181.56,181.51,4.93942325]
[1755821912828,0.71,181.55,181.54,26.0]
[1755821913029,0.71,181.55,181.54,4.939423]
[1755821913230,1e-08,181.56,181.55,31.50812448]
[1755821913435,1e-08,181.56,181.55,26.0]
[1755821913820,0.71000001,181.56,181.55,26.0]
[1755821915666,5.64942326,181.56,181.55,26.0]
[1755821917048,5.64942326,181.56,181.53,26.0]
[1755821917350,5.64942326,181.56,181.5,48.2293848]
[1755821917351,0.71,181.55,181.54,26.0]
[1755821917649,0.71,181.55,181.49,5.53988767]
[1755821917847,0.71,181.55,181.52,26.0]
[1755821918547,4.93942325,181.53,181.51,26.0]
[1755821918723,5.64942325,181.52,181.51,26.0]
[1755821918928,5.64942325,181.52,181.49,0.03]
[1755821919246,4.93942325,181.5,181.49,0.03]
[1755821919630,5.64942325,181.5,181.49,0.03]
[1755821920026,4.93942325,181.51,181.49,0.03]
[1755821920225,0.71,181.52,181.49,0.03]
[1755821920226,5.64942325,181.52,181.49,0.03]
[1755821920646,1e-08,181.56,181.49,0.03]
[1755821920647,4.93942325,181.51,181.49,0.03]
[1755821920963,5.64942325,181.51,181.49,0.03]
[1755821921250,4.93942325,181.51,181.49,0.03]
[1755821921448,4.93942325,181.54,181.51,26.0]
[1755821921636,5.64942325,181.54,181.51,26.0]
[1755821921834,1e-08,181.56,181.51,26.69]
[1755821922026,1e-08,181.56,181.55,26.0]
[1755821922424,5.64942326,181.56,181.55,26.0]
[1755821922639,0.71000001,181.56,181.55,26.0]
[1755821922844,1e-08,181.56,181.55,26.0]
[1755821923037,1e-08,181.56,181.55,0.28432314]
[1755821923639,1e-08,181.56,181.55,5.79244762]
[1755821923847,1e-08,181.56,181.55,25.01746488]
[1755821924535,5.64942326,181.56,181.54,5.649424]
[1755821924844,4.93942325,181.55,181.54,5.649424]
[1755821925158,5.64942326,181.56,181.54,5.649424]
[1755821925328,1e-08,181.56,181.55,0.83216157]
[1755821925532,1e-08,181.56,181.55,25.01746488]
[1755821925933,1e-08,181.56,181.55,20.07804163]
[1755821926155,1e-08,181.56,181.55,25.01746488]
[1755821930660,1e-08,181.56,181.55,30.42189269]
[1755821931963,1e-08,181.56,181.55,25.48246944]
[1755821932178,1e-08,181.56,181.55,73.24189269]
[1755821932645,1e-08,181.56,181.55,29.73189269]
[1755821932849,1e-08,181.56,181.55,72.55189269]
[1755821933363,1e-08,181.56,181.55,73.23189269]
[1755821937662,1e-08,181.56,181.55,75.43945869]
[1755821939965,1e-08,181.56,181.55,74.75945869]
[1755821940345,1e-08,181.56,181.55,75.43945869]
[1755821941475,1e-08,181.56,181.55,74.75945869]
[1755821941969,1e-08,181.56,181.55,74.71945869]
[1755821942971,1e-08,181.56,181.55,75.39945869]
[1755821945072,1e-08,181.56,181.55,70.46003544]
[1755821945274,1e-08,181.56,181.55,75.39945869]
[1755821945860,1e-08,181.56,181.55,74.71945869]
[1755821947590,1e-08,181.56,181.55,75.39945869]
[1755821948188,1e-08,181.56,181.55,74.71945869]
[1755821948899,1e-08,181.56,181.55,31.93945869]
[1755821949196,1e-08,181.56,181.55,75.39945869]
[1755821950057,1e-08,181.56,181.55,74.71945869]
[1755821950793,1e-08,181.56,181.55,75.39945869]
[1755821952809,132.4,181.67,181.55,75.39945869]
[1755821952810,0.66,181.67,181.66,26.0]
[1755821953184,5.59942325,181.67,181.66,26.0]
[1755821953489,5.59942325,181.67,181.66,42.55218]
[1755821953696,4.93942325,181.67,181.66,42.55218]
[1755821953872,5.59942325,181.67,181.66,42.55218]
[1755821958926,5.59942325,181.67,181.66,16.55218]
[1755821959521,0.66,181.67,181.66,16.55218]
[1755821959823,5.59942325,181.67,181.66,16.55218]
[1755821960892,0.66,181.67,181.66,16.55218]
[1755821961116,5.59942325,181.67,181.66,16.55218]
[1755821961322,0.66,181.67,181.66,16.55218]
[1755821961491,4.93942325,181.67,181.66,16.55218]
[1755821961694,47.69942325,181.68,181.66,22.05694141]
[1755821961936,47.69942325,181.68,181.66,16.55218]
[1755821962102,4.93942325,181.67,181.66,16.55218]
[1755821962298,5.63942325,181.67,181.66,16.55218]
[1755821962700,5.63942325,181.67,181.66,26.0]
[1755821963119,5.63942325,181.67,181.66,42.55218]
[1755821965606,5.63942325,181.67,181.6,26.0]
[1755821965902,4.93942325,181.62,181.6,26.0]
[1755821966235,4.93942325,181.62,181.61,16.556748]
[1755821966929,4.93942325,181.63,181.61,16.556748]
[1755821967227,4.93942325,181.63,181.61,22.753003]
[1755821967530,5.63942325,181.62,181.61,16.556748]
[1755821967713,4.93942325,181.62,181.61,16.556748]
[1755821967909,5.63942325,181.62,181.61,16.556748]
[1755821968730,14.29189765,181.62,181.55,0.03]
[1755821968900,4.93942325,181.56,181.55,0.03]
[1755821969224,4.93942325,181.56,181.55,26.03]
[1755821969622,4.93942325,181.56,181.55,30.969424]
[1755821970411,0.7,181.57,181.56,26.0]
[1755821970607,5.63942325,181.57,181.56,26.0]
[1755821972014,5.63942325,181.57,181.55,4.969424]
[1755821972200,42.78,181.59,181.55,30.969424]
[1755821972201,5.63942325,181.56,181.55,30.969424]
[1755821973220,48.41942325,181.56,181.55,30.969424]
[1755821974018,4.93942325,181.62,181.55,31.659424]
[1755821974220,4.93942325,181.6,181.55,37.16746934]
[1755821974408,5.63942325,181.59,181.55,37.16746934]
[1755821974609,4.93942325,181.58,181.55,37.16746934]
[1755821974816,47.75942325,181.6,181.58,26.0]
[1755821975011,47.75942325,181.6,181.58,26.69]
[1755821975306,42.82,181.6,181.59,26.0]
[1755821975831,42.82,181.6,181.59,0.69]
[1755821976130,47.75942325,181.63,181.61,26.0]
[1755821976307,47.75942325,181.63,181.61,26.69]
[1755821976632,47.75942325,181.63,181.61,26.0]
[1755821977011,47.75942325,181.63,181.62,26.0]
[1755821978207,47.75942325,181.63,181.61,26.0]
[1755821978624,47.75942325,181.63,181.61,26.69]
[1755821978833,42.82,181.63,181.62,26.0]
[1755821979137,42.82,181.63,181.62,43.246748]
[1755821979751,4.99942325,181.65,181.62,43.246748]
[1755821979752,0.06,181.65,181.62,53.69205002]
[1755821979924,0.06,181.65,181.64,5.22374639]
[1755821980423,0.06,181.65,181.64,5.91374639]
[1755821980829,48.53942325,181.65,181.62,16.556748]
[1755821981061,47.83942325,181.65,181.64,26.0]
[1755821981734,48.31942325,181.65,181.64,26.0]
[1755821983962,48.31942325,181.65,181.6,26.0]
[1755821984132,4.93942325,181.61,181.6,26.0]
[1755821984658,47.85942325,181.62,181.6,26.69]
[1755821984941,47.85942325,181.64,181.63,26.0]
[1755821985569,42.92,181.64,181.63,26.69]
[1755821985730,4.99942325,181.65,181.63,26.69]
[1755821986553,4.99942325,181.65,181.64,16.555835]
[1755821987240,5.68942325,181.65,181.64,16.555835]
[1755821988329,4.99942325,181.65,181.64,16.555835]
[1755821988643,0.06,181.65,181.64,17.225835]
[1755821990062,0.06,181.65,181.64,22.73123028]
[1755821993832,0.06,181.65,181.64,17.225835]
[1755821995741,0.06,181.65,181.64,22.73123028]
[1755821997252,0.06,181.65,181.64,17.225835]
[1755821997452,0.06,181.65,181.64,22.73123028]
[1755822000191,0.06,181.65,181.64,41.55057068]
[1755822002961,0.06,181.65,181.64,36.61114743]
[1755822003167,0.06,181.65,181.64,41.55057068]
[1755822004949,0.06,181.65,181.64,36.61114743]
[1755822005365,0.06,181.65,181.64,41.26624754]
[1755822005753,0.06,181.65,181.64,41.40840911]
[1755822005960,0.06,181.65,181.64,41.55057068]
[1755822009558,0.06,181.65,181.64,84.39057068]
[1755822012374,0.06,181.65,181.64,16.555835]
[1755822012579,0.06,181.65,181.64,22.06123028]
[1755822013097,0.75,181.65,181.64,16.555835]
[1755822013250,0.06,181.65,181.64,16.555835]
[1755822013454,0.06,181.65,181.64,27.95497667]
[1755822014281,0.06,181.65,181.64,23.01555342]
[1755822014478,0.06,181.65,181.64,22.34555342]
[1755822016387,0.06,181.65,181.64,27.95497667]
[1755822016584,0.06,181.65,181.64,27.28497667]
[1755822016783,0.06,181.65,181.64,22.34555342]
[1755822017171,0.06,181.65,181.64,16.84015814]
[1755822018084,0.06,181.65,181.64,22.34555342]
[1755822018267,0.06,181.65,181.64,27.81786408]
[1755822019883,0.73,181.65,181.64,16.555835]
[1755822020290,0.73,181.65,181.64,22.06123028]
[1755822020583,0.73,181.65,181.64,16.555835]
[1755822021185,0.06,181.65,181.64,16.555835]
[1755822021567,5.66942325,181.65,181.64,16.555835]
[1755822021775,0.73,181.65,181.64,16.555835]
[1755822021986,0.06,181.65,181.64,22.06123028]
[1755822022588,0.06,181.65,181.64,27.96497667]
[1755822026799,0.06,181.65,181.64,41.56057068]
[1755822027016,0.06,181.67,181.66,13.87991715]
[1755822027174,0.06,181.67,181.66,61.5793404]
[1755822027374,0.06,181.67,181.66,67.76412956]
[1755822029400,0.06,181.67,181.66,25.00412956]
[1755822029703,0.06,181.67,181.66,73.23355256]
[1755822030382,0.06,181.67,181.66,24.83412931]
[1755822030587,0.06,181.67,181.66,67.61412931]
[1755822033622,0.06,181.67,181.66,68.29412931]
[1755822033830,0.06,181.67,181.66,72.55355256]
[1755822034605,0.06,181.67,181.66,73.23355256]
[1755822036531,0.06,181.69,181.68,39.59559401]
[1755822036704,1e-08,181.69,181.68,61.5593404]
[1755822037028,1e-08,181.69,181.68,62.2393404]
[1755822038231,1e-08,181.69,181.68,67.74352357]
[1755822042333,1e-08,181.69,181.68,84.28657657]
[1755822043930,1e-08,181.73,181.72,39.59559401]
[1755822044116,1e-08,181.73,181.72,93.042312]
[1755822044506,1e-08,181.73,181.72,93.722312]
[1755822044701,1e-08,181.73,181.72,98.661735]
[1755822047136,1e-08,181.73,181.72,97.981735]
[1755822047335,1e-08,181.73,181.72,93.04231175]
[1755822047538,1e-08,181.73,181.72,97.981735]
[1755822049316,0.22000001,181.75,181.72,97.981735]
[1755822049517,4.93942325,181.79,181.78,26.0]
[1755822050245,4.93942325,181.79,181.77,16.541229]
[1755822051440,0.19,181.78,181.77,22.04268688]
[1755822055745,5.12942325,181.78,181.77,22.04268688]
[1755822055924,5.12942325,181.78,181.77,5.50145788]
[1755822056627,0.19,181.78,181.77,5.50145788]
[1755822056829,132.4,181.82,181.8,26.0]
[1755822057446,0.19,181.81,181.8,26.0]
[1755822058027,5.12942325,181.81,181.8,26.0]
[1755822058226,0.19,181.81,181.8,26.0]
[1755822058541,5.12942325,181.81,181.8,26.0]
[1755822059329,5.12942325,181.81,181.78,5.50099318]
[1755822059330,5.12942325,181.81,181.79,5.50078639]
[1755822059749,5.12942325,181.81,181.8,26.0]
[1755822060543,5.12942325,181.81,181.79,26.0]
[1755822060727,5.12942325,181.8,181.79,26.0]
[1755822061459,47.82942325,181.8,181.79,26.0]
[1755822061826,42.89,181.8,181.79,26.0]
[1755822062049,47.82942325,181.8,181.79,26.0]
[1755822063331,52.7688465,181.8,181.77,26.0]
[1755822063531,4.93942325,181.78,181.73,16.544878]
[1755822063856,4.93942325,181.74,181.71,5.50317373]
[1755822064045,47.63942325,181.8,181.71,5.50317373]
[1755822064046,4.93942325,181.72,181.71,5.50317373]
[1755822064245,4.93942325,181.72,181.71,5.78749687]
[1755822064555,4.93942325,181.72,181.68,0.75]
[1755822064756,4.93942325,181.69,181.68,0.03]
[1755822065055,4.93942325,181.7,181.68,17.299441]
[1755822065261,4.93942325,181.7,181.69,0.72]
[1755822065441,4.93942325,181.73,181.69,14.45775558]
[1755822065638,4.93942325,181.73,181.7,0.86216157]
[1755822065833,4.93942325,181.73,181.72,26.0]
[1755822066032,5.12942325,181.73,181.72,26.0]
[1755822066352,5.12942325,181.73,181.71,26.0]
[1755822066556,5.52942325,181.72,181.71,26.0]
[1755822068154,4.93942325,181.72,181.71,26.72]
[1755822068461,4.93942325,181.72,181.71,26.0]
[1755822068634,5.52942325,181.72,181.71,26.0]
[1755822068833,42.7,181.74,181.72,26.0]
[1755822069066,4.93942325,181.73,181.72,26.0]
[1755822070753,4.93942325,181.73,181.71,6.22321451]
[1755822070954,4.93942325,181.8,181.74,26.0]
[1755822070955,4.93942325,181.75,181.74,26.0]
[1755822071252,4.93942325,181.75,181.74,26.72]
[1755822072044,4.93942325,181.77,181.76,26.0]
[1755822072457,4.93942325,181.77,181.76,26.72]
[1755822072969,42.7,181.79,181.76,26.72]
[1755822073139,47.63942325,181.79,181.76,31.50176056]
[1755822073343,47.63942325,181.79,181.77,0.72]
[1755822073543,4.93942325,181.78,181.77,0.72]
[1755822073772,42.7,181.79,181.78,0.72]
[1755822073944,4.93942325,181.8,181.78,0.72]
[1755822074146,4.93942325,181.8,181.79,0.72]
[1755822074835,42.76,181.82,181.79,0.72]
[1755822074836,4.93942325,181.81,181.79,0.72]
[1755822075033,4.93942325,181.8,181.79,6.22081925]
[1755822075244,4.93942325,181.8,181.79,22.76113625]
[1755822076052,42.76,181.82,181.81,26.0]
[1755822076253,47.69942325,181.82,181.8,5.50052281]
[1755822076547,4.93942325,181.81,181.8,5.50052281]
[1755822076752,42.76,181.82,181.8,6.22052281]
[1755822076962,4.99942325,181.82,181.81,0.72]
[1755822077148,0.06,181.82,181.81,0.72]
[1755822077479,0.06,181.82,181.81,14.59991715]
[1755822077654,0.06,181.82,181.81,1.00432314]
[1755822078264,4.99942325,181.82,181.79,22.04114691]
[1755822078448,0.06,181.82,181.81,26.0]
[1755822078653,0.06,181.82,181.81,26.72]
[1755822078855,0.06,181.82,181.81,43.258493]
[1755822079042,0.06,181.82,181.81,42.538493]
[1755822079576,4.99942325,181.82,181.81,26.0]
[1755822079887,5.58942325,181.82,181.8,42.539405]
[1755822080038,0.06,181.82,181.8,26.0]
[1755822080247,4.93942325,181.81,181.8,26.0]
[1755822080441,5.52942325,181.81,181.79,16.540317]
[1755822080763,4.93942325,181.8,181.79,26.0]
[1755822080978,5.52942325,181.8,181.79,26.0]
[1755822081181,10.4688465,181.8,181.75,0.03]
[1755822081342,4.93942325,181.76,181.75,26.75]
[1755822081543,42.72,181.79,181.78,26.0]
[1755822081874,4.93942325,181.79,181.78,0.72]
[1755822082043,42.78,181.82,181.79,26.0]
[1755822082237,4.93942325,181.8,181.79,26.0]
[1755822084548,10.4688465,181.8,181.79,26.0]
[1755822084776,10.4688465,181.8,181.76,26.0]
[1755822084951,4.93942325,181.77,181.76,26.0]
[1755822085459,4.93942325,181.77,181.75,0.03]
[1755822085460,5.52942325,181.77,181.75,0.03]
[1755822085777,0.59,181.77,181.76,26.0]
[1755822086181,0.59,181.77,181.75,0.03]
[1755822086476,42.76,181.78,181.76,26.0]
[1755822086688,43.35,181.78,181.76,26.0]
[1755822086980,4.93942325,181.77,181.76,26.0]
[1755822087278,5.52942325,181.77,181.76,26.0]
[1755822087578,4.93942325,181.77,181.76,26.0]
[1755822087988,4.93942325,181.77,181.76,26.72]
[1755822088277,47.69942325,181.77,181.76,26.72]
[1755822089263,47.69942325,181.77,181.76,26.0]
[1755822090288,132.4,181.81,181.77,26.0]
[1755822090496,4.93942325,181.78,181.77,26.0]
[1755822091282,4.93942325,181.78,181.77,0.72]
[1755822091486,42.76,181.79,181.78,26.0]
[1755822091487,4.93942325,181.79,181.78,26.0]
[1755822091695,4.93942325,181.79,181.78,26.72]
[1755822091870,4.93942325,181.79,181.78,0.72]
[1755822092073,42.8,181.81,181.8,26.0]
[1755822092264,47.73942325,181.81,181.8,26.72]
[1755822093502,47.73942325,181.81,181.8,26.0]
[1755822094869,47.73942325,181.81,181.79,26.0]
[1755822095099,4.93942325,181.8,181.79,26.0]
[1755822095469,4.93942325,181.8,181.79,0.72]
[1755822096794,42.86,181.81,181.8,26.0]
[1755822097865,47.79942325,181.81,181.8,26.0]
[1755822098697,48.38942325,181.81,181.8,26.0]
[1755822098996,48.38942325,181.81,181.75,0.03]
[1755822098997,0.28432314,181.79,181.75,0.03]
[1755822099220,4.93942325,181.76,181.75,0.03]
[1755822099381,47.79942325,181.76,181.75,0.03]
[1755822099705,57.03278539,181.76,181.7,0.03]
[1755822099874,9.8788465,181.72,181.7,0.03]
[1755822100072,52.7388465,181.72,181.7,0.03]
[1755822100283,53.3288465,181.72,181.7,0.03]
[1755822101978,9.8788465,181.71,181.7,0.03]
[1755822102172,10.4688465,181.71,181.7,0.03]
[1755822104274,142.8688465,181.71,181.7,0.03]
[1755822104495,132.99,181.71,181.7,0.03]
[1755822104793,142.8688465,181.71,181.7,0.03]
[1755822106377,132.4,181.71,181.7,0.75]
[1755822106573,4.93942325,181.71,181.7,0.75]
[1755822109419,42.84,181.72,181.7,0.75]
[1755822109610,47.77942325,181.72,181.7,0.75]
[1755822109811,47.77942325,181.72,181.71,0.71]
[1755822110827,4.93942325,181.72,181.71,0.71]
[1755822111121,47.77942325,181.73,181.71,0.71]
[1755822111310,47.77942325,181.73,181.72,26.71]
[1755822111715,0.59,181.79,181.72,26.71]
[1755822112022,4.93942325,181.76,181.74,26.0]
[1755822112228,47.79942325,181.77,181.75,0.71]
[1755822112429,47.79942325,181.77,181.76,0.71]
[1755822113709,47.79942325,181.77,181.73,26.0]
[1755822113710,48.38942325,181.77,181.73,26.0]
[1755822113915,0.06,181.81,181.74,0.71]
[1755822114117,4.93942325,181.78,181.75,26.0]
[1755822114327,4.93942325,181.76,181.75,26.0]
[1755822114530,0.65,181.81,181.75,26.0]
[1755822114531,0.65,181.81,181.75,26.71]
[1755822114831,4.93942325,181.76,181.75,26.0]
[1755822115130,47.83942325,181.76,181.75,26.0]
[1755822116632,47.83942325,181.76,181.73,26.71]
[1755822116813,4.93942325,181.75,181.74,26.71]
[1755822117197,42.9,181.76,181.74,26.71]
[1755822117402,42.9,181.76,181.75,26.0]
[1755822117831,47.83942325,181.76,181.75,26.0]